[Event "Late-Titled-Tuesday-Blitz-August-29-2023"]
[Site "Chess.com"]
[Date "2023.08.29"]
[Round "9"]
[White "HenriL"]
[Black "Zkid"]
[Result "0-1"]
[WhiteElo "2533"]
[BlackElo "2840"]
[TimeControl "180+1"]
[EndTime "15:43:39 PDT"]
[Termination "Zkid won on time"]

1. d4 {[%clk 0:03:00.9]} 1... d5 {[%clk 0:02:49]} 2. Nf3 {[%clk 0:03:00.8]} 2...
Nf6 {[%clk 0:02:49.2]} 3. c4 {[%clk 0:03:00.7]} 3... dxc4 {[%clk 0:02:50.1]} 4.
e3 {[%clk 0:03:00.5]} 4... e6 {[%clk 0:02:50]} 5. Bxc4 {[%clk 0:03:00.7]} 5...
c5 {[%clk 0:02:50.7]} 6. O-O {[%clk 0:03:01]} 6... a6 {[%clk 0:02:51.3]} 7. a4
{[%clk 0:02:58.9]} 7... b6 {[%clk 0:02:49.5]} 8. Nc3 {[%clk 0:02:58.1]} 8... Bb7
{[%clk 0:02:49.5]} 9. Ne5 {[%clk 0:02:46.1]} 9... Nbd7 {[%clk 0:02:42]} 10. Nxd7
{[%clk 0:02:36.9]} 10... Qxd7 {[%clk 0:02:40.1]} 11. Qe2 {[%clk 0:02:23.5]}
11... cxd4 {[%clk 0:02:37.2]} 12. exd4 {[%clk 0:02:24.4]} 12... Qxd4 {[%clk
0:02:27.9]} 13. Be3 {[%clk 0:02:24.6]} 13... Qg4 {[%clk 0:02:26.7]} 14. Qxg4
{[%clk 0:02:23.2]} 14... Nxg4 {[%clk 0:02:26.2]} 15. Bxb6 {[%clk 0:02:23.8]}
15... Bd6 {[%clk 0:02:25.1]} 16. h3 {[%clk 0:02:23.4]} 16... Ne5 {[%clk
0:02:24.8]} 17. Be2 {[%clk 0:02:22.7]} 17... O-O {[%clk 0:02:16.5]} 18. Rfd1
{[%clk 0:02:17.9]} 18... Be7 {[%clk 0:02:13.9]} 19. a5 {[%clk 0:02:05.3]} 19...
Rac8 {[%clk 0:02:06.9]} 20. Rd4 {[%clk 0:01:43.6]} 20... Nc6 {[%clk 0:01:56.2]}
21. Rd7 {[%clk 0:01:41.5]} 21... Rb8 {[%clk 0:01:50.5]} 22. Bf3 {[%clk
0:01:32.7]} 22... Bd8 {[%clk 0:01:23.5]} 23. Rxb7 {[%clk 0:01:27.7]} 23... Rxb7
{[%clk 0:01:23.4]} 24. Bxc6 {[%clk 0:01:28.1]} 24... Rb8 {[%clk 0:01:23.9]} 25.
Na4 {[%clk 0:01:23.7]} 25... Bf6 {[%clk 0:01:21.6]} 26. Rd1 {[%clk 0:01:20.1]}
26... Rfc8 {[%clk 0:01:19.9]} 27. Be4 {[%clk 0:01:16.1]} 27... Rc4 {[%clk
0:01:17.9]} 28. Nc5 {[%clk 0:01:13.3]} 28... Rc8 {[%clk 0:01:02.5]} 29. b4
{[%clk 0:00:38.9]} 29... Rxb4 {[%clk 0:00:56.8]} 30. Bf3 {[%clk 0:00:37.9]}
30... g6 {[%clk 0:00:42.8]} 31. Nxa6 {[%clk 0:00:37.2]} 31... Rb2 {[%clk
0:00:43.4]} 32. Nc5 {[%clk 0:00:36.3]} 32... Rxb6 {[%clk 0:00:41.2]} 33. axb6
{[%clk 0:00:35.4]} 33... Rxc5 {[%clk 0:00:41.3]} 34. b7 {[%clk 0:00:33.9]} 34...
Rb5 {[%clk 0:00:41.5]} 35. Rc1 {[%clk 0:00:25.8]} 35... Kg7 {[%clk 0:00:39.4]}
36. g3 {[%clk 0:00:25.6]} 36... h5 {[%clk 0:00:33]} 37. Rc8 {[%clk 0:00:24.2]}
37... Be5 {[%clk 0:00:32.6]} 38. h4 {[%clk 0:00:24.4]} 38... f5 {[%clk 0:00:27]}
39. Rd8 {[%clk 0:00:23]} 39... Rb2 {[%clk 0:00:20.8]} 40. Kf1 {[%clk 0:00:17.8]}
40... Kf6 {[%clk 0:00:19.4]} 41. Bc6 {[%clk 0:00:16.8]} 41... Rb6 {[%clk
0:00:13.3]} 42. Rc8 {[%clk 0:00:15]} 42... Rb1+ {[%clk 0:00:12.6]} 43. Kg2
{[%clk 0:00:14.9]} 43... Rb2 {[%clk 0:00:12.4]} 44. Rd8 {[%clk 0:00:13.9]} 44...
g5 {[%clk 0:00:10.3]} 45. hxg5+ {[%clk 0:00:13.9]} 45... Kxg5 {[%clk 0:00:11.2]}
46. Re8 {[%clk 0:00:13.8]} 46... Kf6 {[%clk 0:00:08.3]} 47. Rd8 {[%clk
0:00:11.8]} 47... f4 {[%clk 0:00:06.2]} 48. gxf4 {[%clk 0:00:11]} 48... Bxf4
{[%clk 0:00:07.1]} 49. Bf3 {[%clk 0:00:09.8]} 49... h4 {[%clk 0:00:07]} 50. Rh8
{[%clk 0:00:08.7]} 50... Bg3 {[%clk 0:00:06.8]} 51. Kh3 {[%clk 0:00:04]} 51...
Be5 {[%clk 0:00:05.1]} 52. Kg2 {[%clk 0:00:03.8]} 52... Bg3 {[%clk 0:00:04.7]}
53. Kh3 {[%clk 0:00:03.9]} 53... Rxf2 {[%clk 0:00:04.6]} 54. b8=Q {[%clk
0:00:02.4]} 54... Bxb8 {[%clk 0:00:04.5]} 55. Rxb8 {[%clk 0:00:03.3]} 55...
Rxf3+ {[%clk 0:00:04.8]} 56. Kxh4 {[%clk 0:00:03.7]} 56... Ke5 {[%clk
0:00:03.5]} 57. Kg4 {[%clk 0:00:03.7]} 57... Rd3 {[%clk 0:00:02]} 58. Rb5+
{[%clk 0:00:03]} 58... Kd4 {[%clk 0:00:02.3]} 59. Ra5 {[%clk 0:00:01.8]} 59...
e5 {[%clk 0:00:03.2]} 60. Ra4+ {[%clk 0:00:01.8]} 60... Kd5 {[%clk 0:00:03.3]}
0-1

[Event "Late-Titled-Tuesday-Blitz-August-29-2023"]
[Site "Chess.com"]
[Date "2023.08.29"]
[Round "9"]
[White "MikeSailer"]
[Black "GreatOwl02"]
[Result "0-1"]
[WhiteElo "2186"]
[BlackElo "2388"]
[TimeControl "180+1"]
[EndTime "15:43:39 PDT"]
[Termination "GreatOwl02 won on time"]

1. d4 {[%clk 0:02:51.4]} 1... Nf6 {[%clk 0:02:57.2]} 2. e3 {[%clk 0:02:45]} 2...
c5 {[%clk 0:02:54.3]} 3. Bd3 {[%clk 0:02:37.1]} 3... e6 {[%clk 0:02:51.3]} 4. c3
{[%clk 0:02:35.9]} 4... b6 {[%clk 0:02:50]} 5. f4 {[%clk 0:02:32.2]} 5... Bb7
{[%clk 0:02:49.7]} 6. Nf3 {[%clk 0:02:26.5]} 6... d6 {[%clk 0:02:35.8]} 7. O-O
{[%clk 0:02:17.9]} 7... Nbd7 {[%clk 0:02:18.9]} 8. Nbd2 {[%clk 0:02:12.6]} 8...
Be7 {[%clk 0:01:50.6]} 9. b3 {[%clk 0:02:05.9]} 9... Nd5 {[%clk 0:01:05.4]} 10.
Qe1 {[%clk 0:01:47.7]} 10... Nxc3 {[%clk 0:00:55.2]} 11. Bb2 {[%clk 0:01:46.4]}
11... cxd4 {[%clk 0:00:51.3]} 12. Nxd4 {[%clk 0:01:34.5]} 12... Nd5 {[%clk
0:00:50.4]} 13. e4 {[%clk 0:01:25.4]} 13... Nb4 {[%clk 0:00:45.8]} 14. Bb1
{[%clk 0:01:22.2]} 14... Bf6 {[%clk 0:00:36.3]} 15. Nc4 {[%clk 0:01:11.8]} 15...
Nc5 {[%clk 0:00:17.2]} 16. e5 {[%clk 0:01:00.6]} 16... dxe5 {[%clk 0:00:17.2]}
17. fxe5 {[%clk 0:00:59.9]} 17... Be7 {[%clk 0:00:17.5]} 18. Nb5 {[%clk
0:00:34.6]} 18... O-O {[%clk 0:00:16.9]} 19. Nbd6 {[%clk 0:00:33.5]} 19... Nd5
{[%clk 0:00:14.5]} 20. Nxb7 {[%clk 0:00:31]} 20... Nxb7 {[%clk 0:00:15.4]} 21.
Qe4 {[%clk 0:00:23.2]} 21... g6 {[%clk 0:00:15.4]} 22. Rf3 {[%clk 0:00:20.6]}
22... Bc5+ {[%clk 0:00:13.9]} 23. Kh1 {[%clk 0:00:20]} 23... Qg5 {[%clk
0:00:13.9]} 24. Bc2 {[%clk 0:00:13.5]} 24... Rad8 {[%clk 0:00:13.7]} 25. Raf1
{[%clk 0:00:12.9]} 25... Rd7 {[%clk 0:00:13.8]} 26. Rg3 {[%clk 0:00:11]} 26...
Qd8 {[%clk 0:00:13.1]} 27. Rh3 {[%clk 0:00:10.2]} 27... Be7 {[%clk 0:00:11]} 28.
Bc1 {[%clk 0:00:09.2]} 28... Nc5 {[%clk 0:00:11.1]} 29. Qe2 {[%clk 0:00:08.8]}
29... Nb4 {[%clk 0:00:11.1]} 30. Bb1 {[%clk 0:00:09.2]} 30... a5 {[%clk
0:00:09.4]} 31. Bh6 {[%clk 0:00:08.4]} 31... Re8 {[%clk 0:00:09.1]} 32. Rhf3
{[%clk 0:00:09.3]} 32... Bf8 {[%clk 0:00:09.6]} 33. Bxf8 {[%clk 0:00:07.8]}
33... Rxf8 {[%clk 0:00:10.5]} 34. Nd6 {[%clk 0:00:08.1]} 34... Nc6 {[%clk
0:00:08.6]} 35. Qf2 {[%clk 0:00:06.9]} 35... Nxe5 {[%clk 0:00:08.7]} 36. Rf4
{[%clk 0:00:06.6]} 36... Rxd6 {[%clk 0:00:08.9]} 37. Qg3 {[%clk 0:00:05]} 37...
Rd2 {[%clk 0:00:08.9]} 38. Rh4 {[%clk 0:00:04.6]} 38... Qd5 {[%clk 0:00:09]} 39.
Qh3 {[%clk 0:00:04.7]} 39... h5 {[%clk 0:00:08.9]} 40. Rxh5 {[%clk 0:00:05.6]}
40... gxh5 {[%clk 0:00:07.9]} 41. Qg3+ {[%clk 0:00:05.1]} 41... Kh8 {[%clk
0:00:07]} 42. Rg1 {[%clk 0:00:03.6]} 42... Ng6 {[%clk 0:00:07.2]} 43. Bxg6
{[%clk 0:00:03.3]} 43... fxg6 {[%clk 0:00:08.1]} 44. Qxg6 {[%clk 0:00:04.2]}
44... Rf5 {[%clk 0:00:03.6]} 45. Qh6+ {[%clk 0:00:03.8]} 45... Kg8 {[%clk
0:00:03.9]} 46. Qg6+ {[%clk 0:00:04.7]} 46... Kf8 {[%clk 0:00:04.2]} 47. Qh6+
{[%clk 0:00:05.2]} 47... Ke7 {[%clk 0:00:04.7]} 48. Qg7+ {[%clk 0:00:05.5]}
48... Rf7 {[%clk 0:00:04.5]} 49. Qg5+ {[%clk 0:00:05.4]} 49... Kd7 {[%clk
0:00:04.4]} 50. Qg8 {[%clk 0:00:05.3]} 50... Re7 {[%clk 0:00:03.9]} 51. Qb8
{[%clk 0:00:04.9]} 51... Qb7 {[%clk 0:00:03.8]} 52. Qf8 {[%clk 0:00:04.8]} 52...
Nd3 {[%clk 0:00:03.4]} 53. Qf3 {[%clk 0:00:03.5]} 53... Nf2+ {[%clk 0:00:02.6]}
54. Qxf2 {[%clk 0:00:03.6]} 54... Rxf2 {[%clk 0:00:03.5]} 0-1

[Event "Late-Titled-Tuesday-Blitz-August-29-2023"]
[Site "Chess.com"]
[Date "2023.08.29"]
[Round "9"]
[White "platy3"]
[Black "EsmeraldasAnderson03"]
[Result "1-0"]
[WhiteElo "2912"]
[BlackElo "2435"]
[TimeControl "180+1"]
[EndTime "15:43:43 PDT"]
[Termination "platy3 won on time"]

1. e4 {[%clk 0:03:00.9]} 1... c5 {[%clk 0:02:57]} 2. Nf3 {[%clk 0:02:59.9]} 2...
d6 {[%clk 0:02:57.3]} 3. Bb5+ {[%clk 0:02:59.8]} 3... Bd7 {[%clk 0:02:57.3]} 4.
Bxd7+ {[%clk 0:02:58.1]} 4... Qxd7 {[%clk 0:02:58.2]} 5. c4 {[%clk 0:02:57.5]}
5... Nf6 {[%clk 0:02:57.5]} 6. Nc3 {[%clk 0:02:58.2]} 6... g6 {[%clk 0:02:57.1]}
7. O-O {[%clk 0:02:58.4]} 7... Bg7 {[%clk 0:02:57.3]} 8. d3 {[%clk 0:02:57.5]}
8... O-O {[%clk 0:02:56.9]} 9. h3 {[%clk 0:02:58.1]} 9... Nc6 {[%clk 0:02:55.9]}
10. Bf4 {[%clk 0:02:58.7]} 10... Nh5 {[%clk 0:02:39.1]} 11. Be3 {[%clk
0:02:56.4]} 11... e5 {[%clk 0:02:38.4]} 12. Nd5 {[%clk 0:02:47]} 12... Ne7
{[%clk 0:02:38.5]} 13. b4 {[%clk 0:02:40.3]} 13... Nxd5 {[%clk 0:02:37.7]} 14.
cxd5 {[%clk 0:02:40.8]} 14... cxb4 {[%clk 0:02:37.8]} 15. Qb3 {[%clk 0:02:41.2]}
15... Nf4 {[%clk 0:02:22.8]} 16. Rfd1 {[%clk 0:02:33.7]} 16... a5 {[%clk
0:02:20.5]} 17. a3 {[%clk 0:01:54.2]} 17... b5 {[%clk 0:02:19.9]} 18. axb4
{[%clk 0:01:52.8]} 18... a4 {[%clk 0:02:20.3]} 19. Qa2 {[%clk 0:01:45.2]} 19...
Rac8 {[%clk 0:02:20.6]} 20. d4 {[%clk 0:01:31.5]} 20... Rc4 {[%clk 0:02:07.1]}
21. dxe5 {[%clk 0:01:31.3]} 21... dxe5 {[%clk 0:02:07.6]} 22. Nd2 {[%clk
0:01:11.6]} 22... Ne2+ {[%clk 0:01:38.9]} 23. Kh2 {[%clk 0:01:09.8]} 23... Nc3
{[%clk 0:01:39.8]} 24. Qc2 {[%clk 0:01:10]} 24... Nxd1 {[%clk 0:01:39.5]} 25.
Nxc4 {[%clk 0:01:10.4]} 25... Rc8 {[%clk 0:01:32.6]} 26. Rxd1 {[%clk 0:00:59.9]}
26... Rxc4 {[%clk 0:01:32.8]} 27. Qd3 {[%clk 0:01:00.6]} 27... Rxb4 {[%clk
0:01:28.2]} 28. d6 {[%clk 0:00:56]} 28... Rc4 {[%clk 0:00:56.5]} 29. Qd5 {[%clk
0:00:56]} 29... Bf8 {[%clk 0:00:37.6]} 30. Qxe5 {[%clk 0:00:52]} 30... a3 {[%clk
0:00:37.8]} 31. Qd5 {[%clk 0:00:48.9]} 31... a2 {[%clk 0:00:35.2]} 32. e5 {[%clk
0:00:49.3]} 32... Qc6 {[%clk 0:00:20.5]} 33. Qxc6 {[%clk 0:00:41.5]} 33... Rxc6
{[%clk 0:00:21.4]} 34. d7 {[%clk 0:00:42.3]} 34... Be7 {[%clk 0:00:20.1]} 35.
d8=Q+ {[%clk 0:00:25.8]} 35... Bxd8 {[%clk 0:00:20.5]} 36. Rxd8+ {[%clk
0:00:26.4]} 36... Kg7 {[%clk 0:00:20.7]} 37. Bd4 {[%clk 0:00:26.6]} 37... Rc4
{[%clk 0:00:18.6]} 38. Bb2 {[%clk 0:00:02.2]} 38... Rc2 {[%clk 0:00:13.4]} 39.
Ba1 {[%clk 0:00:02.7]} 39... Rc1 {[%clk 0:00:13.5]} 40. Bb2 {[%clk 0:00:02.1]}
40... Rb1 {[%clk 0:00:08.4]} 41. e6+ {[%clk 0:00:02.3]} 41... Rxb2 {[%clk
0:00:08]} 42. e7 {[%clk 0:00:02.9]} 42... Re2 {[%clk 0:00:05.1]} 43. Ra8 {[%clk
0:00:03.3]} 43... Rxe7 {[%clk 0:00:05.1]} 44. Rxa2 {[%clk 0:00:04]} 44... Rb7
{[%clk 0:00:05.4]} 45. Rb2 {[%clk 0:00:04.6]} 45... b4 {[%clk 0:00:06.3]} 46.
Kg3 {[%clk 0:00:05.1]} 46... b3 {[%clk 0:00:06.9]} 47. Kf4 {[%clk 0:00:05.8]}
47... Kf6 {[%clk 0:00:07.8]} 48. Ke4 {[%clk 0:00:06.5]} 48... Kg5 {[%clk
0:00:08]} 49. g3 {[%clk 0:00:06.2]} 49... f5+ {[%clk 0:00:07.8]} 50. Ke5 {[%clk
0:00:06]} 50... Rb5+ {[%clk 0:00:07.3]} 51. Kd4 {[%clk 0:00:06.5]} 51... f4
{[%clk 0:00:07.3]} 52. Ke4 {[%clk 0:00:07]} 52... fxg3 {[%clk 0:00:07.2]} 53.
fxg3 {[%clk 0:00:07.9]} 53... h5 {[%clk 0:00:07.7]} 54. Kf3 {[%clk 0:00:02.2]}
54... Kf5 {[%clk 0:00:04.6]} 55. Ke3 {[%clk 0:00:02.2]} 55... Kg5 {[%clk
0:00:04.4]} 56. Kf3 {[%clk 0:00:02.7]} 56... h4 {[%clk 0:00:04.7]} 57. gxh4+
{[%clk 0:00:03.1]} 57... Kxh4 {[%clk 0:00:05.6]} 58. Kg2 {[%clk 0:00:03.9]}
58... Rb8 {[%clk 0:00:03.4]} 59. Kh2 {[%clk 0:00:04]} 59... Kg5 {[%clk
0:00:02.5]} 60. Kg3 {[%clk 0:00:04.4]} 60... Kf5 {[%clk 0:00:02]} 61. Kf3 {[%clk
0:00:05.1]} 61... Rb7 {[%clk 0:00:02.1]} 62. h4 {[%clk 0:00:04.9]} 62... Rb4
{[%clk 0:00:01.2]} 63. Kg3 {[%clk 0:00:04.4]} 1-0

[Event "Late-Titled-Tuesday-Blitz-August-29-2023"]
[Site "Chess.com"]
[Date "2023.08.29"]
[Round "9"]
[White "newyorkmouse"]
[Black "Sajkochess"]
[Result "0-1"]
[WhiteElo "2457"]
[BlackElo "2423"]
[TimeControl "180+1"]
[EndTime "15:43:47 PDT"]
[Termination "Sajkochess won by checkmate"]

1. d4 {[%clk 0:02:39]} 1... Nf6 {[%clk 0:02:59.5]} 2. Nc3 {[%clk 0:02:38.3]}
2... d5 {[%clk 0:02:58.6]} 3. Bf4 {[%clk 0:02:35.6]} 3... c6 {[%clk 0:02:52.8]}
4. e3 {[%clk 0:02:34.2]} 4... Bf5 {[%clk 0:02:51.2]} 5. Nf3 {[%clk 0:02:34.3]}
5... Nbd7 {[%clk 0:02:49.5]} 6. Ne5 {[%clk 0:02:34.4]} 6... Nxe5 {[%clk
0:02:49]} 7. dxe5 {[%clk 0:02:34.1]} 7... Ne4 {[%clk 0:02:49.2]} 8. Nxe4 {[%clk
0:02:28.2]} 8... Bxe4 {[%clk 0:02:42.4]} 9. e6 {[%clk 0:02:25]} 9... fxe6 {[%clk
0:02:36.9]} 10. Be2 {[%clk 0:02:21.2]} 10... Qb6 {[%clk 0:01:57.5]} 11. Be5
{[%clk 0:02:09.8]} 11... O-O-O {[%clk 0:01:53.7]} 12. Bg4 {[%clk 0:02:01.6]}
12... Bf5 {[%clk 0:01:52.6]} 13. Qf3 {[%clk 0:01:50.7]} 13... Qb4+ {[%clk
0:01:46.1]} 14. c3 {[%clk 0:01:22.5]} 14... Qxg4 {[%clk 0:01:45.7]} 15. Qxg4
{[%clk 0:01:20.2]} 15... Bxg4 {[%clk 0:01:46.6]} 16. e4 {[%clk 0:01:20.2]} 16...
dxe4 {[%clk 0:01:43.5]} 17. h3 {[%clk 0:01:20.1]} 17... Bh5 {[%clk 0:01:40.3]}
18. g4 {[%clk 0:01:20.1]} 18... Bf7 {[%clk 0:01:37.5]} 19. h4 {[%clk 0:01:19.7]}
19... Rg8 {[%clk 0:01:37.5]} 20. h5 {[%clk 0:01:19.8]} 20... g6 {[%clk
0:01:37.9]} 21. h6 {[%clk 0:01:20.1]} 21... g5 {[%clk 0:01:35.9]} 22. Ke2 {[%clk
0:01:19.2]} 22... Rg6 {[%clk 0:01:36]} 23. Ke3 {[%clk 0:01:17.8]} 23... Bxh6
{[%clk 0:01:32.2]} 24. Kxe4 {[%clk 0:01:16.7]} 24... Bg7 {[%clk 0:01:31.8]} 25.
Rxh7 {[%clk 0:01:16.7]} 25... Bxe5 {[%clk 0:01:24.3]} 26. Kxe5 {[%clk
0:01:17.6]} 26... Rf6 {[%clk 0:01:22.6]} 27. Rg7 {[%clk 0:01:17.2]} 27... Bg6
{[%clk 0:01:19.7]} 28. Rxe7 {[%clk 0:01:16]} 28... Rf7 {[%clk 0:01:10.6]} 29.
Rxf7 {[%clk 0:01:11.9]} 29... Bxf7 {[%clk 0:01:11]} 30. Kf6 {[%clk 0:01:12.8]}
30... Bg8 {[%clk 0:01:02.8]} 31. Kxg5 {[%clk 0:01:02.4]} 31... e5 {[%clk
0:00:58.6]} 32. Rh1 {[%clk 0:00:54.2]} 32... Bxa2 {[%clk 0:00:55.4]} 33. Ra1
{[%clk 0:00:53.9]} 33... Bd5 {[%clk 0:00:48.8]} 34. Rxa7 {[%clk 0:00:53.2]}
34... Kb8 {[%clk 0:00:49.3]} 35. Ra1 {[%clk 0:00:52.9]} 35... Rf8 {[%clk
0:00:49.8]} 36. Re1 {[%clk 0:00:46.3]} 36... e4 {[%clk 0:00:49.9]} 37. Re2
{[%clk 0:00:45.4]} 37... Kc7 {[%clk 0:00:50.1]} 38. Kh6 {[%clk 0:00:43.6]} 38...
Kd6 {[%clk 0:00:44]} 39. g5 {[%clk 0:00:43.8]} 39... Ke5 {[%clk 0:00:41.2]} 40.
g6 {[%clk 0:00:30.3]} 40... Kf6 {[%clk 0:00:41.3]} 41. g7 {[%clk 0:00:30.7]}
41... Rg8 {[%clk 0:00:41.4]} 42. c4 {[%clk 0:00:29.7]} 42... Rxg7 {[%clk
0:00:35.3]} 43. cxd5 {[%clk 0:00:28.1]} 43... cxd5 {[%clk 0:00:35.6]} 44. Rd2
{[%clk 0:00:22.5]} 44... Rg8 {[%clk 0:00:20.5]} 45. Kh5 {[%clk 0:00:18.7]} 45...
Ke5 {[%clk 0:00:18.8]} 46. Kh4 {[%clk 0:00:17.8]} 46... d4 {[%clk 0:00:18.3]}
47. Kh3 {[%clk 0:00:18.3]} 47... d3 {[%clk 0:00:16.7]} 48. f3 {[%clk 0:00:11.1]}
48... Kd4 {[%clk 0:00:09.3]} 49. fxe4 {[%clk 0:00:11.4]} 49... Kxe4 {[%clk
0:00:09.6]} 50. Rd1 {[%clk 0:00:10.6]} 50... Ke3 {[%clk 0:00:09.1]} 51. Re1+
{[%clk 0:00:11.3]} 51... Kd2 {[%clk 0:00:09.4]} 52. Re7 {[%clk 0:00:12]} 52...
Kc2 {[%clk 0:00:05.1]} 53. Rc7+ {[%clk 0:00:12.1]} 53... Kxb2 {[%clk 0:00:03.3]}
54. Rxb7+ {[%clk 0:00:12.6]} 54... Kc1 {[%clk 0:00:03.5]} 55. Rc7+ {[%clk
0:00:12.3]} 55... Kd1 {[%clk 0:00:03.5]} 56. Kh2 {[%clk 0:00:12.6]} 56... d2
{[%clk 0:00:04]} 57. Kh3 {[%clk 0:00:12.3]} 57... Re8 {[%clk 0:00:04.3]} 58. Kg2
{[%clk 0:00:12.2]} 58... Ke1 {[%clk 0:00:04.8]} 59. Rc8 {[%clk 0:00:09.4]} 59...
Rxc8 {[%clk 0:00:03.6]} 60. Kf3 {[%clk 0:00:10.3]} 60... d1=Q+ {[%clk
0:00:03.8]} 61. Kg2 {[%clk 0:00:11.2]} 61... Qd2+ {[%clk 0:00:04]} 62. Kg3
{[%clk 0:00:11.6]} 62... Rg8+ {[%clk 0:00:04.4]} 63. Kf3 {[%clk 0:00:11.3]}
63... Qf2+ {[%clk 0:00:04.7]} 64. Ke4 {[%clk 0:00:11.5]} 64... Re8+ {[%clk
0:00:05.3]} 65. Kd3 {[%clk 0:00:11.7]} 65... Qd2+ {[%clk 0:00:05.8]} 66. Kc4
{[%clk 0:00:12.4]} 66... Rc8+ {[%clk 0:00:06.2]} 67. Kb3 {[%clk 0:00:13.3]}
67... Qc2+ {[%clk 0:00:05.7]} 68. Ka3 {[%clk 0:00:14.2]} 68... Ra8+ {[%clk
0:00:04.2]} 69. Kb4 {[%clk 0:00:15.1]} 69... Rb8+ {[%clk 0:00:04.6]} 70. Ka3
{[%clk 0:00:15.3]} 70... Qb3# {[%clk 0:00:05]} 0-1

[Event "Late-Titled-Tuesday-Blitz-August-29-2023"]
[Site "Chess.com"]
[Date "2023.08.29"]
[Round "9"]
[White "ural58"]
[Black "FredddieCroderg"]
[Result "1-0"]
[WhiteElo "2510"]
[BlackElo "2309"]
[TimeControl "180+1"]
[EndTime "15:43:47 PDT"]
[Termination "ural58 won by checkmate"]

1. e4 {[%clk 0:02:57.2]} 1... c6 {[%clk 0:02:59.8]} 2. Nc3 {[%clk 0:02:56.4]}
2... d5 {[%clk 0:03:00.1]} 3. Nf3 {[%clk 0:02:55.5]} 3... Bg4 {[%clk 0:02:59.9]}
4. h3 {[%clk 0:02:55.1]} 4... Bh5 {[%clk 0:02:59.9]} 5. exd5 {[%clk 0:02:52.8]}
5... cxd5 {[%clk 0:02:59.9]} 6. g4 {[%clk 0:02:52.6]} 6... Bg6 {[%clk
0:02:59.6]} 7. Ne5 {[%clk 0:02:52.6]} 7... Nc6 {[%clk 0:02:58.6]} 8. d4 {[%clk
0:02:46.8]} 8... e6 {[%clk 0:02:55.9]} 9. h4 {[%clk 0:02:40.1]} 9... f6 {[%clk
0:02:54.5]} 10. Nxg6 {[%clk 0:02:37.1]} 10... hxg6 {[%clk 0:02:54.5]} 11. Bd3
{[%clk 0:02:33.6]} 11... f5 {[%clk 0:02:51.7]} 12. Bg5 {[%clk 0:02:28.7]} 12...
Be7 {[%clk 0:02:39.8]} 13. Bxe7 {[%clk 0:02:21.9]} 13... Qxe7 {[%clk 0:02:38.9]}
14. Qd2 {[%clk 0:02:07]} 14... Rxh4 {[%clk 0:02:30.8]} 15. O-O-O {[%clk
0:02:02.6]} 15... Rxg4 {[%clk 0:02:21.8]} 16. f3 {[%clk 0:01:58.9]} 16... Rxd4
{[%clk 0:02:19.3]} 17. Qg2 {[%clk 0:01:52]} 17... g5 {[%clk 0:02:10.9]} 18. Nb5
{[%clk 0:01:42.4]} 18... Rh4 {[%clk 0:02:01.4]} 19. Rxh4 {[%clk 0:01:39.4]}
19... gxh4 {[%clk 0:02:01.4]} 20. Qg6+ {[%clk 0:01:39.1]} 20... Kd7 {[%clk
0:01:48.3]} 21. Bxf5 {[%clk 0:01:31.3]} 21... Nf6 {[%clk 0:01:35.6]} 22. Bh3
{[%clk 0:01:08.5]} 22... a6 {[%clk 0:01:34.5]} 23. Nc3 {[%clk 0:01:07.8]} 23...
Kc7 {[%clk 0:01:32.1]} 24. Qg5 {[%clk 0:01:05.8]} 24... Rc8 {[%clk 0:01:27.5]}
25. Qxh4 {[%clk 0:01:05.2]} 25... Kb8 {[%clk 0:01:24.8]} 26. Qg3+ {[%clk
0:01:04.9]} 26... Ka8 {[%clk 0:01:23.3]} 27. Nxd5 {[%clk 0:00:55.7]} 27... Nxd5
{[%clk 0:01:18.6]} 28. Rxd5 {[%clk 0:00:55.5]} 28... exd5 {[%clk 0:01:13.7]} 29.
Bxc8 {[%clk 0:00:54.7]} 29... Qe3+ {[%clk 0:01:13.2]} 30. Kd1 {[%clk 0:00:54.9]}
30... Nd4 {[%clk 0:01:09.4]} 31. Qg2 {[%clk 0:00:41.5]} 31... Nxf3 {[%clk
0:01:04.4]} 32. c3 {[%clk 0:00:36.2]} 32... Qe1+ {[%clk 0:00:36.7]} 33. Kc2
{[%clk 0:00:36.2]} 33... Qe4+ {[%clk 0:00:35.7]} 34. Kd1 {[%clk 0:00:33.5]}
34... Qb1+ {[%clk 0:00:19.1]} 35. Ke2 {[%clk 0:00:33.3]} 35... Qe4+ {[%clk
0:00:18.6]} 36. Kf2 {[%clk 0:00:32.4]} 36... Nd2 {[%clk 0:00:14.7]} 37. Qxg7
{[%clk 0:00:28.8]} 37... d4 {[%clk 0:00:11.3]} 38. Qxd4 {[%clk 0:00:14.4]} 38...
Qf3+ {[%clk 0:00:10.4]} 39. Ke1 {[%clk 0:00:14.6]} 39... Ne4 {[%clk 0:00:10]}
40. Bd7 {[%clk 0:00:11]} 40... Qh1+ {[%clk 0:00:09.1]} 41. Ke2 {[%clk
0:00:11.1]} 41... Qg2+ {[%clk 0:00:09.2]} 42. Kd3 {[%clk 0:00:11.4]} 42... Nf2+
{[%clk 0:00:07.7]} 43. Kc4 {[%clk 0:00:10.8]} 43... Qg8+ {[%clk 0:00:05.8]} 44.
Qd5 {[%clk 0:00:10]} 44... Qd8 {[%clk 0:00:03.5]} 45. Be6 {[%clk 0:00:07.5]}
45... Qc7+ {[%clk 0:00:03.2]} 46. Kb3 {[%clk 0:00:07.4]} 46... Qb6+ {[%clk
0:00:01.4]} 47. Kc2 {[%clk 0:00:07.7]} 47... Qc7 {[%clk 0:00:02.1]} 48. b4
{[%clk 0:00:06]} 48... Nh3 {[%clk 0:00:02]} 49. Bxh3 {[%clk 0:00:05]} 49... Qh2+
{[%clk 0:00:02.1]} 50. Qg2 {[%clk 0:00:04.8]} 50... Qc7 {[%clk 0:00:02.8]} 51.
Qd2 {[%clk 0:00:04.6]} 51... Ka7 {[%clk 0:00:03.7]} 52. Kb2 {[%clk 0:00:05]}
52... Qb6 {[%clk 0:00:04.6]} 53. Qd4 {[%clk 0:00:05.4]} 53... Qxd4 {[%clk
0:00:03.9]} 54. cxd4 {[%clk 0:00:06.3]} 54... Kb6 {[%clk 0:00:03.8]} 55. Kb3
{[%clk 0:00:07.2]} 55... Kb5 {[%clk 0:00:04.4]} 56. Bg2 {[%clk 0:00:07.7]} 56...
a5 {[%clk 0:00:05.3]} 57. Bxb7 {[%clk 0:00:07.8]} 57... a4+ {[%clk 0:00:06.2]}
58. Ka3 {[%clk 0:00:07.7]} 58... Kb6 {[%clk 0:00:06.9]} 59. Kxa4 {[%clk
0:00:07.4]} 59... Kc7 {[%clk 0:00:07.8]} 60. d5 {[%clk 0:00:07.9]} 60... Kd7
{[%clk 0:00:08.7]} 61. Ka5 {[%clk 0:00:08.3]} 61... Kd6 {[%clk 0:00:09.6]} 62.
Bc6 {[%clk 0:00:08.9]} 62... Kc7 {[%clk 0:00:09.4]} 63. Ka6 {[%clk 0:00:09.6]}
63... Kb8 {[%clk 0:00:10.3]} 64. b5 {[%clk 0:00:10]} 64... Kc8 {[%clk
0:00:10.9]} 65. Kb6 {[%clk 0:00:10.4]} 65... Kb8 {[%clk 0:00:11.3]} 66. Kc5
{[%clk 0:00:11.1]} 66... Kc8 {[%clk 0:00:12.2]} 67. a4 {[%clk 0:00:11.2]} 67...
Kb8 {[%clk 0:00:13.1]} 68. a5 {[%clk 0:00:12.1]} 68... Kc8 {[%clk 0:00:14]} 69.
a6 {[%clk 0:00:12.4]} 69... Kb8 {[%clk 0:00:14.9]} 70. b6 {[%clk 0:00:12.9]}
70... Kc8 {[%clk 0:00:15.8]} 71. d6 {[%clk 0:00:13.2]} 71... Kb8 {[%clk
0:00:16.7]} 72. a7+ {[%clk 0:00:13.5]} 72... Kc8 {[%clk 0:00:17.6]} 73. a8=Q#
{[%clk 0:00:14.4]} 1-0